Workbook

Sheet Sheet1
A1: COMMON NAME | B1: SCIENTIFIC NAME | C1: EEP | D1: SSSMZP risk cat. | E1: IUCN | F1: CITES | G1: Start totals | H1: SUBMITTED TOTALS | K1: Arrived | N1: Born | Q1: Neonatal death <30 hatch/birth | T1: Death | W1: Departed | Z1: CURRENT TOTALS | AC1: Current totals
H2: As of 01/01/2017 | Z2: As of | AA2: 2017-12-31
H3: M | I3: F | J3: Unk | K3: M | L3: F | M3: Unk | N3: M | O3: F | P3: Unk | Q3: M | R3: F | S3: Unk | T3: M | U3: F | V3: Unk | W3: M | X3: F | Y3: Unk | Z3: M | AA3: F | AB3: Unk
A4: INVERTEBRATES
A5: Giant African Millipede | B5: Archispirostreptus gigas | G5: 1 | H5: 0 | I5: 0 | J5: 1 | M5: 2 | V5: 2 | Z5: =SUM(H5+K5+N5-Q5-T5-W5) -> 0 | AA5: =SUM(I5+L5+O5-R5-U5-X5) -> 0 | AB5: =SUM(J5+M5+P5-S5-V5-Y5) -> 1 | AC5: =SUM(Z5+AA5+AB5) -> 1
A6: Imperial Scorpion | B6: Pandinus imperator | G6: 2 | H6: 0 | I6: 0 | J6: 2 | Z6: =SUM(H6+K6+N6-Q6-T6-W6) -> 0 | AA6: =SUM(I6+L6+O6-R6-U6-X6) -> 0 | AB6: =SUM(J6+M6+P6-S6-V6-Y6) -> 2 | AC6: =SUM(Z6+AA6+AB6) -> 2
A7: Fire millipede | B7: Centrobolus splendidus | G7: 0 | H7: 0 | I7: 0 | J7: 0 | M7: 2 | V7: 1 | Z7: 0 | AA7: 0 | AB7: 1 | AC7: 1
A8: Sun Beetle | B8: Pachnoda marginata aurantia | G8: 30 | H8: 0 | I8: 0 | J8: 30 | P8: 18 | V8: 10 | Z8: 0 | AA8: 0 | AB8: 38 | AC8: 38
A9: Chilian Rose Tarantula | B9: Grammostola rosea | G9: 1 | H9: 0 | I9: 1 | J9: 0 | Z9: 0 | AA9: 1 | AB9: 0 | AC9: 1
A10: TOTAL Invertebrate species: | G10: =COUNTIF(G5:G9,">0") -> 4 | AC10: =COUNTIF(AC5:AC9,">0") -> 5
A11: TOTAL Invertebrate: | G11: =SUM(H11:J11) -> 34 | H11: =SUM(H5:H9) -> 0 | I11: 1 | J11: 33 | K11: 0 | L11: 0 | M11: 4 | N11: =SUM(N5:N5) -> 0 | O11: 0 | P11: 0 | Q11: 0 | R11: 0 | S11: 0 | T11: =SUM(T5:T9) -> 0 | U11: =SUM(U5:U5) -> 0 | V11: 6 | W11: =SUM(W5:W5) -> 0 | X11: =SUM(X5:X5) -> 0 | Y11: =SUM(Y5:Y5) -> 0 | Z11: =SUM(Z5:Z10) -> 0 | AA11: =SUM(AA5:AA10) -> 1 | AB11: =SUM(AB5:AB9) -> 42 | AC11: =SUM(Z11:AB11) -> 43
A13: MARINE ANIMALS
A14: DAMSELFISH
A15: Black Neon Damsel | B15: Neoglyphidodon oxyodon | G15: 24 | H15: 0 | I15: 0 | J15: 24 | Z15: =SUM(H15+K15+N15-Q15-T15-W15) -> 0 | AA15: =SUM(I15+L15+O15-R15-U15-X15) -> 0 | AB15: =SUM(J15+M15+P15-S15-V15-Y15) -> 24 | AC15: =SUM(Z15+AA15+AB15) -> 24
A16: Humbug Damsel | B16: Dascyllus melanurus | G16: 4 | H16: 0 | I16: 0 | J16: 4 | Z16: 0 | AA16: 0 | AB16: 4 | AC16: 4
A17: Three Stripe Humbug | B17: Dascyllus anuanus | G17: 9 | H17: 0 | I17: 0 | J17: 9 | M17: 12 | Z17: 0 | AA17: 0 | AB17: 21 | AC17: 21
A18: Domino Damsel | B18: Dascyllus trimaculatus | G18: 47 | H18: 0 | I18: 0 | J18: 47 | V18: 2 | Z18: 0 | AA18: 0 | AB18: 45 | AC18: 45
A19: Yellowtail blue damselfish | B19: Chrysiptera parasema | G19: 26 | H19: 0 | I19: 0 | J19: 26 | M19: 15 | Z19: 0 | AA19: 0 | AB19: 41 | AC19: 41
A20: Lemon Damsel | B20: Amblyglyphidodon aureus | G20: 50 | H20: 0 | I20: 0 | J20: 50 | Z20: 0 | AA20: 0 | AB20: 50 | AC20: 50
A21: Sergeant Major | B21: Adudefduf saxatilis | G21: 8 | H21: 0 | I21: 0 | J21: 8 | M21: 12 | V21: 2 | Z21: 0 | AA21: 0 | AB21: 18 | AC21: 18
A22: Tri coloured Damsel | B22: Chrysiptera rollandi | G22: 19 | H22: 0 | I22: 0 | J22: 19 | M22: 12 | Z22: 0 | AA22: 0 | AB22: 31 | AC22: 31
A23: Black n Gold Damsel | B23: Neoglyphidodon nigroris | G23: 9 | H23: 0 | I23: 0 | J23: 9 | Z23: 0 | AA23: 0 | AB23: 9 | AC23: 9
A24: Blue Fin Damsel | B24: Chrysiptera flavipinnis | G24: 5 | H24: 0 | I24: 0 | J24: 5 | Z24: 0 | AA24: 0 | AB24: 5 | AC24: 5
A25: Blue Neon Damsel | B25: Pomacentrus alleni | G25: 12 | H25: 0 | I25: 0 | J25: 12 | M25: 12 | Z25: 0 | AA25: 0 | AB25: 24 | AC25: 24
A26: Green Chromis | B26: Chromis viridis | G26: 47 | H26: 0 | I26: 0 | J26: 47 | M26: 53 | Z26: 0 | AA26: 0 | AB26: 100 | AC26: 100
A27: Black Bar Chromis | B27: Chromis retrofasciata | G27: 1 | H27: 0 | I27: 0 | J27: 1 | Z27: 0 | AA27: 0 | AB27: 1 | AC27: 1
A28: Bicolour Chromis | B28: Chromis bicolor | G28: 14 | H28: 0 | I28: 0 | J28: 14 | Z28: 0 | AA28: 0 | AB28: 14 | AC28: 14
A29: Regal Damsel | B29: Chrysiptera hemicyanea | G29: 20 | H29: 0 | I29: 0 | J29: 20 | M29: 27 | Z29: 0 | AA29: 0 | AB29: 47 | AC29: 47
A30: Royal Blue Damsel | B30: Chrysiptera springeri | G30: 0 | H30: 0 | I30: 0 | J30: 0 | M30: 22 | V30: 1 | Z30: 0 | AA30: 0 | AB30: 21 | AC30: 21
A31: Emperor Damsel | B31: Chrysiptera parasema | G31: 20 | H31: 0 | I31: 0 | J31: 20 | Z31: 0 | AA31: 0 | AB31: 20 | AC31: 20
A32: Fijian Blue Gold Damsels | B32: Chrysiptera taupou | G32: 20 | H32: 0 | I32: 0 | J32: 20 | Z32: 0 | AA32: 0 | AB32: 20 | AC32: 20
A33: Common Clownfish | B33: Amphiprion occelaris | G33: 8 | H33: 0 | I33: 0 | J33: 8 | M33: 21 | Z33: 0 | AA33: 0 | AB33: 29 | AC33: 29
A34: Sunface Damsel | B34: Chrysiptera talboti | G34: 10 | H34: 0 | I34: 0 | J34: 10 | M34: 15 | Z34: 0 | AA34: 0 | AB34: 25 | AC34: 25
A35: Clarki Clownfish | B35: Amphiprion clarkii | G35: 4 | H35: 0 | I35: 0 | J35: 4 | V35: 1 | Z35: 0 | AA35: 0 | AB35: 3 | AC35: 3
A36: SHARKS
A37: Blacktip Reef Shark | B37: Carcharhinus melanopterus | G37: 1 | H37: 0 | I37: 1 | J37: 0 | K37: 2 | U37: 1 | Z37: 2 | AA37: 0 | AB37: 0 | AC37: 2
A38: Brown Banded Bamboo Shark | B38: Chiloscyllium punctatum | G38: 1 | H38: 1 | I38: 0 | J38: 0 | Z38: 1 | AA38: 0 | AB38: 0 | AC38: 1
A39: Angel Shark | B39: Squatina squatina | G39: 1 | H39: 1 | I39: 0 | J39: 0 | Z39: 1 | AA39: 0 | AB39: 0 | AC39: 1
A40: Bull Huss | B40: Scyliorhinus stellaris | G40: 8 | H40: 2 | I40: 1 | J40: 6 | Z40: 2 | AA40: 1 | AB40: 6 | AC40: 9
A41: Lesser Spotted Dogfish | B41: Scyliorhinus canicula | G41: 5 | H41: 0 | I41: 0 | J41: 5 | V41: 2 | Z41: 0 | AA41: 0 | AB41: 3 | AC41: 3
A42: Starry Smoothhound | B42: Mustelus asterias | G42: 2 | H42: 2 | I42: 0 | J42: 0 | M42: 1 | V42: 1 | Z42: 2 | AA42: 0 | AB42: 0 | AC42: 2
A43: RAYS
A44: Common Stingray | B44: Dasyatis pastinaca | G44: 2 | H44: 0 | I44: 2 | J44: 0 | U44: 2 | Z44: 0 | AA44: 0 | AB44: 0 | AC44: 0
A45: Blonde Ray | B45: Raja brachyura | G45: 1 | H45: 0 | I45: 1 | J45: 0 | Z45: 0 | AA45: 1 | AB45: 0 | AC45: 1
A46: Painted Ray | B46: Raja microocellata | G46: 1 | H46: 0 | I46: 1 | J46: 0 | Z46: 0 | AA46: 1 | AB46: 0 | AC46: 1
A47: Thornback Ray | B47: Raja clavata | G47: 7 | H47: 3 | I47: 2 | J47: 2 | M47: 1 | V47: 2 | Z47: 3 | AA47: 2 | AB47: 1 | AC47: 6
A48: TRIGGERFISH
A49: Black Durgeon | B49: Melichthys niger | G49: 4 | H49: 0 | I49: 0 | J49: 4 | V49: 1 | Z49: 0 | AA49: 0 | AB49: 3 | AC49: 3
A50: Blue Triggerfish | B50: Odonus niger | G50: 0 | H50: 0 | I50: 0 | J50: 0 | M50: 2 | Z50: 0 | AA50: 0 | AB50: 2 | AC50: 2
A51: Grey Triggerfish | B51: Balistes capriscus | G51: 2 | H51: 0 | I51: 0 | J51: 2 | V51: 2 | Z51: 0 | AA51: 0 | AB51: 0 | AC51: 0
A52: Picasso triggerfish | B52: Rhinecanthus aculeatus | G52: 2 | H52: 0 | I52: 0 | J52: 2 | M52: 1 | Z52: 0 | AA52: 0 | AB52: 3 | AC52: 3
A53: Wedgetail Picasso | B53: Rhinecanthus rectangulus | G53: 1 | H53: 0 | I53: 0 | J53: 1 | Z53: 0 | AA53: 0 | AB53: 1 | AC53: 1
A54: Queen Triggerfish | B54: Balistes vetula | G54: 1 | H54: 0 | I54: 0 | J54: 1 | M54: 1 | V54: 1 | Z54: 0 | AA54: 0 | AB54: 1 | AC54: 1
A55: Blue Jigsaw Trigger | B55: Pseudobalistes fuscus | G55: 1 | H55: 0 | I55: 0 | J55: 1 | M55: 1 | V55: 1 | Z55: 0 | AA55: 0 | AB55: 1 | AC55: 1
A56: Clown Trigger | B56: Balistoides conspicillum | G56: 2 | H56: 0 | I56: 0 | J56: 2 | Z56: 0 | AA56: 0 | AB56: 2 | AC56: 2
A57: WRASSE
A58: Gold sinny | B58: Ctenolabrus rupestris | G58: 2 | H58: 0 | I58: 0 | J58: 2 | V58: 1 | Z58: 0 | AA58: 0 | AB58: 1 | AC58: 1
A59: Cleaner Wrasse | B59: Labroides dimidiatus | G59: 10 | H59: 0 | I59: 0 | J59: 10 | M59: 6 | Z59: 0 | AA59: 0 | AB59: 16 | AC59: 16
A60: Ballan Wrasse | B60: Labrus bergylta | G60: 2 | H60: 1 | I60: 1 | J60: 0 | T60: 1 | Z60: 0 | AA60: 1 | AB60: 0 | AC60: 1
A61: Cuckoo Wrasse | B61: Labrus bimaculatus | G61: 1 | H61: 0 | I61: 1 | J61: 0 | Z61: 0 | AA61: 1 | AB61: 0 | AC61: 1
A62: Spanish Hogfish | B62: Bodianus rufus | G62: 1 | H62: 0 | I62: 0 | J62: 1 | Z62: 0 | AA62: 0 | AB62: 1 | AC62: 1
A63: Birdmouth Wrasse | B63: Gomphosus caeruleus | G63: 0 | H63: 0 | I63: 0 | J63: 0 | M63: 5 | Z63: 0 | AA63: 0 | AB63: 5 | AC63: 5
A64: Silver Bellied Wrasse | B64: Halichoeres trispilus | G64: 5 | H64: 0 | I64: 0 | J64: 5 | M64: 3 | Z64: 0 | AA64: 0 | AB64: 8 | AC64: 8
A65: Paddlefin Wrasse | B65: Thalassoma lucasanum | G65: 1 | H65: 0 | I65: 0 | J65: 1 | Z65: 0 | AA65: 0 | AB65: 1 | AC65: 1
A66: Clown Coris Wrasse | B66: Coris aygula | G66: 1 | H66: 0 | I66: 0 | J66: 1 | V66: 1 | Z66: 0 | AA66: 0 | AB66: 0 | AC66: 0
A67: Pinstripe Wrasse | B67: Halichoeres melanurus | G67: 1 | H67: 0 | I67: 0 | J67: 1 | V67: 1 | Z67: 0 | AA67: 0 | AB67: 0 | AC67: 0
A68: Pyjama Wrasse | B68: Pseudocheilinus hexataenia | G68: 1 | H68: 0 | I68: 0 | J68: 1 | Z68: 0 | AA68: 0 | AB68: 1 | AC68: 1
A69: Hawaiian Pyjama Wrasse | B69: Pseudocheilinus tetrataenia | G69: 0 | H69: 0 | I69: 0 | J69: 0 | M69: 1 | Z69: 0 | AA69: 0 | AB69: 1 | AC69: 1
A70: Twistii Wrasse | B70: Anampses twistii | G70: 1 | H70: 0 | I70: 0 | J70: 1 | Z70: 0 | AA70: 0 | AB70: 1 | AC70: 1
A71: Dragon Wrasse | B71: Novaculichthys taeniourus | G71: 1 | H71: 0 | I71: 0 | J71: 1 | Z71: 0 | AA71: 0 | AB71: 1 | AC71: 1
A72: Richmonds Wrasse | B72: Halichoeres richmondi | G72: 0 | H72: 0 | I72: 0 | J72: 0 | M72: 1 | Z72: 0 | AA72: 0 | AB72: 1 | AC72: 1
A73: Venus Wrasse | B73: Coris venusta | G73: 0 | H73: 0 | I73: 0 | J73: 0 | M73: 1 | Z73: 0 | AA73: 0 | AB73: 1 | AC73: 1
A74: ANGELFISH
A75: Bicolour Angelfish | B75: Centropyge bicolor | G75: 4 | H75: 0 | I75: 0 | J75: 4 | Z75: 0 | AA75: 0 | AB75: 4 | AC75: 4
A76: Bluespot Angel | B76: Chaetodontoplus chrysocephalus | G76: 0 | H76: 0 | I76: 0 | J76: 0 | M76: 1 | V76: 1 | Z76: 0 | AA76: 0 | AB76: 0 | AC76: 0
A77: Potters Angel | B77: Centropyge potteri | G77: 0 | H77: 0 | I77: 0 | J77: 0 | M77: 1 | Z77: 0 | AA77: 0 | AB77: 1 | AC77: 1
A78: Red Stripe Angel | B78: Centropyge eibl | G78: 1 | H78: 0 | I78: 0 | J78: 1 | M78: 1 | Z78: 0 | AA78: 0 | AB78: 2 | AC78: 2
A79: Rusty Angel | B79: Centropyge ferrugata | G79: 1 | H79: 0 | I79: 0 | J79: 1 | V79: 1 | Z79: 0 | AA79: 0 | AB79: 0 | AC79: 0
A80: Coral Beauty | B80: Centropyge bispinosus | G80: 0 | H80: 0 | I80: 0 | J80: 0 | M80: 1 | Z80: 0 | AA80: 0 | AB80: 1 | AC80: 1
A81: Koran Angel | B81: Pomacanthus semicirculatu | G81: 1 | H81: 0 | I81: 0 | J81: 1 | Z81: 0 | AA81: 0 | AB81: 1 | AC81: 1
A82: Singapore Angel | B82: Chaetodontoplus mesoleucus | G82: 1 | H82: 0 | I82: 0 | J82: 1 | Z82: 0 | AA82: 0 | AB82: 1 | AC82: 1
A83: Cream Angel | B83: Apolemicthys xanthurus | G83: 2 | H83: 0 | I83: 0 | J83: 2 | Z83: 0 | AA83: 0 | AB83: 2 | AC83: 2
A84: Fireball Angel | B84: Centropyge acanthops | G84: 0 | H84: 0 | I84: 0 | J84: 0 | M84: 1 | Z84: =SUM(H84+K84+N84-Q84-T84-W84) -> 0 | AA84: =SUM(I84+L84+O84-R84-U84-X84) -> 0 | AB84: 1 | AC84: =SUM(Z84+AA84+AB84) -> 1
A85: Flame Angel | B85: Centropyge loriculus | G85: 1 | H85: 0 | I85: 0 | J85: 1 | Z85: 0 | AA85: 0 | AB85: 1 | AC85: 1
A86: French Angel | B86: Pomacanthus paru | G86: 0 | H86: 0 | I86: 0 | J86: 0 | M86: 1 | V86: 1 | Z86: 0 | AA86: 0 | AB86: 0 | AC86: 0
A87: Lemon Peel | B87: Centropyge flavissima | G87: 2 | H87: 0 | I87: 0 | J87: 2 | Z87: 0 | AA87: 0 | AB87: 2 | AC87: 2
A88: Keyhole Angel | B88: Centropyge tibicen | G88: 1 | H88: 0 | I88: 0 | J88: 1 | Z88: 0 | AA88: 0 | AB88: 1 | AC88: 1
A89: PUFFERFISH/BOXFISH/COWFISH
A90: Hovercraft Cowfish | B90: Tetrosomus gibbosus | G90: 2 | H90: 0 | I90: 0 | J90: 2 | Z90: 0 | AA90: 0 | AB90: 2 | AC90: 2
A91: Long Horned Cowfish | B91: Lactoria cornuta | G91: 1 | H91: 0 | I91: 0 | J91: 1 | M91: 2 | V91: 2 | Z91: 0 | AA91: 0 | AB91: 1 | AC91: 1
A92: Yellow Boxfish | B92: Ostracion cubicus | G92: 1 | H92: 0 | I92: 0 | J92: 1 | Z92: 0 | AA92: 0 | AB92: 1 | AC92: 1
A93: Porcupine pufferfish | B93: Diodon holocanthus | G93: 3 | H93: 0 | I93: 0 | J93: 3 | M93: 2 | V93: 1 | Z93: 0 | AA93: 0 | AB93: 4 | AC93: 4
A94: Stars and Stripe Pufferfish | B94: Arothron hispidus | G94: 1 | H94: 0 | I94: 0 | J94: 1 | Z94: 0 | AA94: 0 | AB94: 1 | AC94: 1
A95: Valentini Pufferfish | B95: Canthigaster valentini | G95: 1 | H95: 0 | I95: 0 | J95: 1 | Z95: 0 | AA95: 0 | AB95: 1 | AC95: 1
A96: Black Spotted Puffer | B96: Arothron nigropunctatus | G96: 2 | H96: 0 | I96: 0 | J96: 2 | M96: 2 | V96: 1 | Z96: 0 | AA96: 0 | AB96: 3 | AC96: 3
A97: Jewel Puffer | B97: Canthigaster solandri | G97: 1 | H97: 0 | I97: 0 | J97: 1 | V97: 1 | Z97: 0 | AA97: 0 | AB97: 0 | AC97: 0
A98: SURGEONFISH
A99: Lopez Tang | B99: Naso lopezi | G99: 1 | H99: 0 | I99: 0 | J99: 1 | Z99: 0 | AA99: 0 | AB99: 1 | AC99: 1
A100: Pacific Sailfin tang | B100: Zebrasoma veliferum | G100: 6 | H100: 0 | I100: 0 | J100: 6 | V100: 1 | Z100: 0 | AA100: 0 | AB100: 5 | AC100: 5
A101: Indian Ocean Sailfin tang | B101: Zebrasoma desjardini | G101: 3 | H101: 0 | I101: 0 | J101: 3 | V101: 1 | Z101: 0 | AA101: 0 | AB101: 2 | AC101: 2
A102: Yellow tang | B102: Zebrasoma flavescens | G102: 8 | H102: 0 | I102: 0 | J102: 8 | M102: 1 | Z102: 0 | AA102: 0 | AB102: 9 | AC102: 9
A103: Yellow Fin Tang | B103: Acanthurus xanthopterus | G103: 1 | H103: 0 | I103: 0 | J103: 1 | Z103: 0 | AA103: 0 | AB103: 1 | AC103: 1
A104: Powder Blue Tang | B104: Acanthurus leucosternon | G104: 3 | H104: 0 | I104: 0 | J104: 3 | Z104: 0 | AA104: 0 | AB104: 3 | AC104: 3
A105: Blue Eye Tang | B105: Ctenochaetus binotatus | G105: 0 | H105: 0 | I105: 0 | J105: 0 | M105: 2 | V105: 1 | Z105: 0 | AA105: 0 | AB105: 1 | AC105: 1
A106: Orange Shoulder Tang | B106: Acanthurus olivaceus | G106: 2 | H106: 0 | I106: 0 | J106: 2 | Z106: 0 | AA106: 0 | AB106: 2 | AC106: 2
A107: Regal Tang | B107: Paracanthurus hepatus | G107: 8 | H107: 0 | I107: 0 | J107: 8 | V107: 1 | Z107: 0 | AA107: 0 | AB107: 7 | AC107: 7
A108: Yellow Eyed Tang | B108: Ctenochaetus strigosus | G108: 0 | H108: 0 | I108: 0 | J108: 0 | M108: 2 | Z108: 0 | AA108: 0 | AB108: 2 | AC108: 2
A109: Lipstick Tang | B109: Naso lituratus | G109: 4 | H109: 0 | I109: 0 | J109: 4 | Z109: 0 | AA109: 0 | AB109: 4 | AC109: 4
A110: Clown Tang | B110: Acanthurus lineatus | G110: 2 | H110: 0 | I110: 0 | J110: 2 | Z110: 0 | AA110: 0 | AB110: 2 | AC110: 2
A111: Vampire Tang | B111: Acanthus tennenti | G111: 1 | H111: 0 | I111: 0 | J111: 1 | Z111: 0 | AA111: 0 | AB111: 1 | AC111: 1
A112: Yellow Tail Purple Tang | B112: Zebrasoma xanthurum | G112: 5 | H112: 0 | I112: 0 | J112: 5 | V112: 1 | Z112: 0 | AA112: 0 | AB112: 4 | AC112: 4
A113: Goldrim Tang | B113: Acanthurus japonicus | G113: 0 | H113: 0 | I113: 0 | J113: 0 | M113: 2 | V113: 2 | Z113: 0 | AA113: 0 | AB113: 0 | AC113: 0
A114: GROUPERS/VENOMOUS FISH
A115: Foxface Rabbitfish | B115: Siganus vulpinus | G115: 2 | H115: 0 | I115: 0 | J115: 2 | V115: 1 | Z115: 0 | AA115: 0 | AB115: 1 | AC115: 1
A116: Red Foxface | B116: Siganus magnificus | G116: 1 | H116: 0 | I116: 0 | J116: 1 | Z116: 0 | AA116: 0 | AB116: 1 | AC116: 1
A117: Red Lionfish | B117: Pterois volitans | G117: 5 | H117: 0 | I117: 0 | J117: 5 | Z117: 0 | AA117: 0 | AB117: 5 | AC117: 5
A118: Fuzzy Dwarf Lionfish | B118: Dendrochirus brachypterus | G118: 3 | H118: 0 | I118: 0 | J118: 3 | Z118: 0 | AA118: 0 | AB118: 3 | AC118: 3
A119: Orange Spot Rabbitfish | B119: Siganus gutattus | G119: 2 | H119: 0 | I119: 0 | J119: 2 | V119: 1 | Z119: 0 | AA119: 0 | AB119: 1 | AC119: 1
A120: Blue Scrawled Rabbitfish | B120: Siganus puellus | G120: 0 | H120: 0 | I120: 0 | J120: 0 | M120: 2 | Z120: 0 | AA120: 0 | AB120: 2 | AC120: 2
A121: Orange Line Rabbitfish | B121: Siganus doliatus | G121: 0 | H121: 0 | I121: 0 | J121: 0 | M121: 2 | Z121: 0 | AA121: 0 | AB121: 2 | AC121: 2
A122: Reef Stonefish | B122: Synanceia verrucosa | G122: 1 | H122: 0 | I122: 0 | J122: 1 | Z122: 0 | AA122: 0 | AB122: 1 | AC122: 1
A123: Longnose Hawkfish | B123: Oxycirrhites typus | G123: 2 | H123: 0 | I123: 0 | J123: 2 | Z123: 0 | AA123: 0 | AB123: 2 | AC123: 2
A124: EELS
A125: Snowflake Moray | B125: Echidna nebulosa | G125: 2 | H125: 0 | I125: 0 | J125: 2 | V125: 1 | Z125: 0 | AA125: 0 | AB125: 1 | AC125: 1
A126: Zebra moray | B126: Gymnomuraena zebra | G126: 3 | H126: 0 | I126: 0 | J126: 3 | V126: 1 | Z126: 0 | AA126: 0 | AB126: 2 | AC126: 2
A127: Tesselate Mooray | B127: Gymnothorax favagineus | G127: 1 | H127: 0 | I127: 0 | J127: 1 | Z127: 0 | AA127: 0 | AB127: 1 | AC127: 1
A128: BREAM
A129: Gilt Head Bream | B129: Sparus aurata | G129: 2 | H129: 0 | I129: 0 | J129: 2 | Z129: 0 | AA129: 0 | AB129: 2 | AC129: 2
A130: Black Sea Bream | B130: Spondyliosoma cantharus | G130: 12 | H130: 0 | I130: 0 | J130: 12 | V130: 3 | Z130: 0 | AA130: 0 | AB130: 9 | AC130: 9
A131: GOATFISH
A132: Yellow Goatfish | B132: Parupeneus cyclostomus | G132: 1 | H132: 0 | I132: 0 | J132: 1 | Z132: 0 | AA132: 0 | AB132: 1 | AC132: 1
A133: Bicolour Goatfish | B133: Parupeneus barberinoides | G133: 2 | H133: 0 | I133: 0 | J133: 2 | M133: 2 | Z133: 0 | AA133: 0 | AB133: 4 | AC133: 4
A134: BUTTERFLYFISH
A135: Teardrop Butterfly fish | B135: Chaetodon unimaculatus | G135: 4 | H135: 0 | I135: 0 | J135: 4 | Z135: 0 | AA135: 0 | AB135: 4 | AC135: 4
A136: Dot Dash Butterfly | B136: Chaetodon pelewensis | G136: 0 | H136: 0 | I136: 0 | J136: 0 | M136: 3 | Z136: 0 | AA136: 0 | AB136: 3 | AC136: 3
A137: Pearlscale Butterflyfish | B137: Chaetodon mertensii | G137: 2 | H137: 0 | I137: 0 | J137: 2 | Z137: 0 | AA137: 0 | AB137: 2 | AC137: 2
A138: Threadfin Butterflyfish | B138: Chaetodon auriga | G138: 4 | H138: 0 | I138: 0 | J138: 4 | Z138: 0 | AA138: 0 | AB138: 4 | AC138: 4
A139: Racoon butterflyfish | B139: Chaetodon lunula | G139: 1 | H139: 0 | I139: 0 | J139: 1 | Z139: 0 | AA139: 0 | AB139: 1 | AC139: 1
A140: Falcula Butterfly | B140: Chaetodon fulcula | G140: 0 | H140: 0 | I140: 0 | J140: 0 | M140: 4 | Z140: 0 | AA140: 0 | AB140: 4 | AC140: 4
A141: Pakistani Butterfly | B141: Chaetodon collare | G141: 2 | H141: 0 | I141: 0 | J141: 2 | Z141: 0 | AA141: 0 | AB141: 2 | AC141: 2
A142: Copperbanded Butterflyfish | B142: Chelmon rostrus | G142: 4 | H142: 0 | I142: 0 | J142: 4 | M142: 1 | V142: 1 | Z142: 0 | AA142: 0 | AB142: 4 | AC142: 4
A143: Saddled Butterfly | B143: Chaetodon ulietensis | G143: 4 | H143: 0 | I143: 0 | J143: 4 | V143: 1 | Z143: 0 | AA143: 0 | AB143: 3 | AC143: 3
A144: Crotchet butterflyfish | B144: Chaetodon guentheri | G144: 3 | H144: 0 | I144: 0 | J144: 3 | Z144: 0 | AA144: 0 | AB144: 3 | AC144: 3
A145: Whimplefish | B145: Heniochus acuminatus | G145: 5 | H145: 0 | I145: 0 | J145: 5 | Z145: 0 | AA145: 0 | AB145: 5 | AC145: 5
A146: Sunburst Butterfly | B146: Chaetodon kleinii | G146: 0 | H146: 0 | I146: 0 | J146: 0 | M146: 2 | V146: 2 | Z146: 0 | AA146: 0 | AB146: 0 | AC146: 0
A147: SYGNATHIDS
A148: Big Bellied Seahorse | B148: Hippocampus abdominalis | G148: 8 | H148: 0 | I148: 0 | J148: 8 | V148: 4 | Z148: 0 | AA148: 0 | AB148: 4 | AC148: 4
A149: Yellow Seahorse | B149: Hippocampus kuda | G149: 3 | H149: 0 | I149: 0 | J149: 3 | V149: 2 | Z149: 0 | AA149: 0 | AB149: 1 | AC149: 1
A150: Lined Seahorse | B150: Hippocampus erectus | G150: 0 | H150: 0 | I150: 0 | J150: 0 | M150: 3 | Z150: 0 | AA150: 0 | AB150: 3 | AC150: 3
A151: Greater Pipefish | B151: Syngnathus acus | G151: 1 | H151: 0 | I151: 1 | J151: 0 | U151: 1 | Z151: 0 | AA151: 0 | AB151: 0 | AC151: 0
A152: GOBY/BLENNY/DRAGONETTE
A153: Blue Cheek Goby | B153: Valenciennea strigata | G153: 2 | H153: 0 | I153: 0 | J153: 2 | Z153: 0 | AA153: 0 | AB153: 2 | AC153: =SUM(Z153+AA153+AB153) -> 2
A154: Chalk Goby | B154: Valenciennea sexguttata | G154: 2 | H154: 0 | I154: 0 | J154: 2 | M154: 3 | Z154: 0 | AA154: 0 | AB154: 5 | AC154: 5
A155: Court Jester Goby | B155: Amblygobius hectori | G155: 2 | H155: 0 | I155: 0 | J155: 2 | Z155: =SUM(H155+K155+N155-Q155-T155-W155) -> 0 | AA155: =SUM(I155+L155+O155-R155-U155-X155) -> 0 | AB155: 2 | AC155: 2
A156: Hi Fin Spangle Goby | B156: Ctenogobiops tangaroai | G156: 4 | H156: 0 | I156: 0 | J156: 4 | Z156: 0 | AA156: 0 | AB156: 4 | AC156: 4
A157: Eye Spot Goby | B157: Signigobius biocellatus | G157: 1 | H157: 0 | I157: 0 | J157: 1 | Z157: 0 | AA157: 0 | AB157: 1 | AC157: 1
A158: Sunspot Goby | B158: Amblyeleotris guttuta | G158: 0 | H158: 0 | I158: 0 | J158: 0 | M158: 2 | V158: 1 | Z158: 0 | AA158: 0 | AB158: 1 | AC158: 1
A159: Red Spot Flymo Blennie | B159: Blenniella chrysospilos | G159: 0 | H159: 0 | I159: 0 | J159: 0 | M159: 2 | V159: 1 | Z159: 0 | AA159: 0 | AB159: 2 | AC159: 2
A160: Scooter Blennie | B160: Synchiropus stellatus | G160: 4 | H160: 0 | I160: 0 | J160: 4 | V160: 1 | Z160: 0 | AA160: 0 | AB160: 3 | AC160: 3
A161: Striped Blennie | B161: Meiacanthus grammistes | G161: 4 | H161: 0 | I161: 0 | J161: 4 | Z161: 0 | AA161: 0 | AB161: 4 | AC161: 4
A162: Five Bearded Rockling | B162: Ciliata mustela | G162: 2 | H162: 0 | I162: 0 | J162: 2 | Z162: 0 | AA162: 0 | AB162: 2 | AC162: 2
A163: Shanny | B163: Lipophrys pholis | G163: 16 | H163: 0 | I163: 0 | J163: 16 | Z163: 0 | AA163: 0 | AB163: 16 | AC163: 16
A164: Tompot Blenny | B164: Parablennius gattorugine | G164: 2 | H164: 0 | I164: 0 | J164: 2 | V164: 2 | Z164: 0 | AA164: 0 | AB164: 0 | AC164: 0
A165: Black Goby | B165: Gobius niger | G165: 1 | H165: 0 | I165: 0 | J165: 1 | Z165: 0 | AA165: 0 | AB165: 1 | AC165: 1
A166: Common Goby | B166: Pomatoschistus microps | G166: 9 | H166: 0 | I166: 0 | J166: 9 | Z166: 0 | AA166: 0 | AB166: 9 | AC166: 9
A167: Eel Blennie | B167: Congrogadus subducens | G167: 1 | H167: 0 | I167: 0 | J167: 1 | Z167: 0 | AA167: 0 | AB167: 1 | AC167: 1
A168: FLATFISH
A169: Solenette | B169: Buglossidium luteum | G169: 1 | H169: 0 | I169: 0 | J169: 1 | Z169: 0 | AA169: 0 | AB169: 1 | AC169: 1
A170: Plaice | B170: Pleuronectes platessa | G170: 1 | H170: 0 | I170: 0 | J170: 1 | Z170: 0 | AA170: 0 | AB170: 1 | AC170: 1
A171: Topknot | B171: Zeugopterus punctatus | G171: 2 | H171: 0 | I171: 0 | J171: 2 | V171: 2 | Z171: 0 | AA171: 0 | AB171: 0 | AC171: 0
A172: Turbot | B172: Scophtalmus maximus | G172: 3 | H172: 0 | I172: 0 | J172: 3 | V172: 1 | Z172: 0 | AA172: 0 | AB172: 2 | AC172: 2
A173: MISC TROPICAL MARINE FISH
A174: Banggai Cardinalfish | B174: Pterapogon kauderni | G174: 14 | H174: 0 | I174: 0 | J174: 14 | M174: 12 | V174: 1 | Z174: 0 | AA174: 0 | AB174: 25 | AC174: 25
A175: Ghost Cardinalfish | B175: Apogon leptacanthus | G175: 4 | H175: 0 | I175: 0 | J175: 4 | Z175: 0 | AA175: 0 | AB175: 4 | AC175: 4
A176: Spotted Cardinal | B176: Sphaeramia nematoptera | G176: 16 | H176: 0 | I176: 0 | J176: 16 | M176: 8 | Z176: 0 | AA176: 0 | AB176: 24 | AC176: 24
A177: Gold Line Cardinal | B177: Apogon cyanosoma | G177: 10 | H177: 0 | I177: 0 | J177: 10 | M177: 8 | Z177: 0 | AA177: 0 | AB177: 18 | AC177: 18
A178: Wreckfish | B178: Pseudanthias squamipinnis | G178: 30 | H178: 0 | I178: 0 | J178: 30 | M178: 30 | V178: 1 | Z178: 0 | AA178: 0 | AB178: 59 | AC178: 59
A179: Bleeding heart anthias | B179: Pseudanthias cooperi | G179: 2 | H179: 0 | I179: 0 | J179: 2 | Z179: 0 | AA179: 0 | AB179: 2 | AC179: 2
A180: Batfish | B180: Platax pinnatus | G180: 7 | H180: 0 | I180: 0 | J180: 7 | Z180: 0 | AA180: 0 | AB180: 7 | AC180: 7
A181: Oriental sweetlips | B181: Plectorhinchus vittatus | G181: 0 | H181: 0 | I181: 0 | J181: 0 | M181: 3 | Z181: 0 | AA181: 0 | AB181: 3 | AC181: 3
A182: Yellow Hi-Fin Sweetlips | B182: Plectorhinchus pictus | G182: 0 | H182: 0 | I182: 0 | J182: 0 | M182: 2 | Z182: 0 | AA182: 0 | AB182: 2 | AC182: 2
A183: Spotted Grunt | B183: Plectorhinchus chaetodonoides | G183: 0 | H183: 0 | I183: 0 | J183: 0 | M183: 3 | Z183: 0 | AA183: 0 | AB183: 3 | AC183: 3
A184: Silver Mono | B184: Monodactylus argenteus | G184: 8 | H184: 0 | I184: 0 | J184: 8 | V184: 2 | Z184: 0 | AA184: 0 | AB184: 6 | AC184: 6
A185: Golden Trevally | B185: Gnathanodon speciosus | G185: 9 | H185: 0 | I185: 0 | J185: 9 | M185: 8 | V185: 2 | Y185: 8 | Z185: 0 | AA185: 0 | AB185: 7 | AC185: 7
A186: Firefish | B186: Nemateleotris magnifica | G186: 1 | H186: 0 | I186: 0 | J186: 1 | Z186: 0 | AA186: 0 | AB186: 1 | AC186: 1
A187: Purple Firefish | B187: Namateleotris decora | G187: 0 | H187: 0 | I187: 0 | J187: 0 | M187: 4 | V187: 2 | Z187: 0 | AA187: 0 | AB187: 2 | AC187: 2
A188: Miniatus Grouper | B188: Cephalopholis miniata | G188: 1 | H188: 0 | I188: 0 | J188: 1 | Z188: 0 | AA188: 0 | AB188: 1 | AC188: 1
A189: Panther Grouper | B189: Cromileptes altivelis | G189: 2 | H189: 0 | I189: 0 | J189: 2 | V189: 1 | Z189: 0 | AA189: 0 | AB189: 1 | AC189: 1
A190: Clown Grouper | B190: Pogonoperca Punctata | G190: 1 | H190: 0 | I190: 0 | J190: 1 | Z190: 0 | AA190: 0 | AB190: 1 | AC190: 1
A191: White Spot Grouper | B191: Epinephelus drummondhayi | G191: 1 | H191: 0 | I191: 0 | J191: 1 | Z191: 0 | AA191: 0 | AB191: 1 | AC191: 1
A192: Marine Comet | B192: Calloplesiops altivelis | G192: 1 | H192: 0 | I192: 0 | J192: 1 | Z192: 0 | AA192: 0 | AB192: 1 | AC192: 1
A193: Royal Gramma | B193: Gramma loreto | G193: 1 | H193: 0 | I193: 0 | J193: 1 | M193: 3 | V193: 1 | Z193: 0 | AA193: 0 | AB193: 3 | AC193: 3
A194: Tassel Filefish | B194: Chaetodermis penicilligerus | G194: 1 | H194: 0 | I194: 0 | J194: 1 | V194: 1 | Z194: 0 | AA194: 0 | AB194: 0 | AC194: 0
A195: Mandarin | B195: Ptorosynchiropus splendidus | G195: 1 | H195: 0 | I195: 0 | J195: 1 | V195: 1 | Z195: 0 | AA195: 0 | AB195: 0 | AC195: 0
A196: Spotted Mandarin | B196: Pterosynchiropus picturatus | G196: 1 | H196: 0 | I196: 0 | J196: 1 | Z196: 0 | AA196: 0 | AB196: 1 | AC196: 1
A197: Matted Leather Jacket | B197: Monacanthus chinensis | G197: 5 | H197: 0 | I197: 0 | J197: 5 | Z197: 0 | AA197: 0 | AB197: 5 | AC197: 5
A198: Aptasia Eating Filefish | B198: Aceicthys tomentosus | G198: 0 | H198: 0 | I198: 0 | J198: 0 | M198: 5 | Z198: 0 | AA198: 0 | AB198: 5 | AC198: 5
A199: Porkfish | B199: Anisotremus virginicus | G199: 10 | H199: 0 | I199: 0 | J199: 10 | M199: 5 | Z199: 0 | AA199: 0 | AB199: 15 | AC199: 15
A201: CEPHALOPODS
A202: Giant Pacific Octopus | B202: Enteroctopus dofleini | G202: 1 | H202: 1 | I202: 0 | J202: 0 | K202: 1 | T202: 1 | Z202: 1 | AA202: 0 | AB202: 0 | AC202: 1
... 121 more rows

Sheet Sheet2

Sheet Sheet3
